[Event "Titled Tuesday Blitz June 27 Late 2023"]
[White "Oparin, Grigoriy"]
[Black "Preotu, Razvan"]
[WhiteFideId "24125890"]
[BlackFideId "2613280"]
[WhiteElo "3025"]
[BlackElo "2740"]
[Result "0-1"]
[Round "3"]
[TimeControl "180+2"]
[Date "2023.06.27"]
[WhiteClock "0:00:03"]
[BlackClock "0:00:05"]
[Board "10"]

1. c4 {[%clk 0:03:00]}  c5 {[%clk 0:02:59]} 2. Nf3 {[%clk 0:03:01]}  Nf6 {[%clk 0:03:00]} 3. Nc3 {[%clk 0:03:00]}  d5 {[%clk 0:03:00]} 4. cxd5 {[%clk 0:03:01]}  Nxd5 {[%clk 0:03:01]} 5. e3 {[%clk 0:03:02]}  e6 {[%clk 0:03:01]} 6. Bb5+ {[%clk 0:02:59]}  Bd7 {[%clk 0:03:00]} 7. Be2 {[%clk 0:02:59]}  Nc6 {[%clk 0:02:49]} 8. O-O {[%clk 0:02:59]}  Be7 {[%clk 0:02:27]} 9. d4 {[%clk 0:02:53]}  cxd4 {[%clk 0:02:22]} 10. Nxd5 {[%clk 0:02:52]}  exd5 {[%clk 0:02:22]} 11. Nxd4 {[%clk 0:02:53]}  O-O {[%clk 0:02:13]} 12. Bf3 {[%clk 0:02:52]}  Bf6 {[%clk 0:02:03]} 13. Bxd5 {[%clk 0:02:51]}  Nxd4 {[%clk 0:02:03]} 14. exd4 {[%clk 0:02:52]}  Bb5 {[%clk 0:02:03]} 15. Bxb7 {[%clk 0:02:29]}  Rb8 {[%clk 0:02:03]} 16. Bf3 {[%clk 0:02:28]}  Bxf1 {[%clk 0:02:03]} 17. Kxf1 {[%clk 0:02:27]}  Bxd4 {[%clk 0:01:57]} 18. Rb1 {[%clk 0:02:25]}  Qb6 {[%clk 0:01:25]} 19. Bf4 {[%clk 0:02:25]}  Rbd8 {[%clk 0:01:21]} 20. Qc2 {[%clk 0:02:24]}  Rc8 {[%clk 0:01:09]} 21. Qd2 {[%clk 0:02:09]}  Rfd8 {[%clk 0:01:10]} 22. a3 {[%clk 0:01:04]}  Be5 {[%clk 0:00:49]} 23. Qe3 {[%clk 0:01:05]}  Bxf4 {[%clk 0:00:48]} 24. Qxf4 {[%clk 0:01:06]}  Rc2 {[%clk 0:00:45]} 25. Be4 {[%clk 0:00:57]}  Rxb2 {[%clk 0:00:32]} 26. Rc1 {[%clk 0:00:57]}  g6 {[%clk 0:00:24]} 27. g4 {[%clk 0:00:55]}  Qe6 {[%clk 0:00:06]} 28. Rc6 {[%clk 0:00:50]}  Qe7 {[%clk 0:00:06]} 29. Bc2 {[%clk 0:00:12]}  Rb6 {[%clk 0:00:05]} 30. Rc3 {[%clk 0:00:11]}  Rf6 {[%clk 0:00:04]} 31. Qg3 {[%clk 0:00:11]}  Rd2 {[%clk 0:00:04]} 32. Bd3 {[%clk 0:00:02]}  Rfxf2+ {[%clk 0:00:04]} 33. Qxf2 {[%clk 0:00:03]}  Rxf2+ {[%clk 0:00:04]} 34. Kxf2 {[%clk 0:00:03]}  Qf6+ {[%clk 0:00:05]} 0-1


[Site "https://www.chess.com"]

[Event "Titled Tuesday Blitz June 27 Late 2023"]
[White "Hakobyan, Aram"]
[Black "Ghazarian, Kirk"]
[WhiteFideId "13306677"]
[BlackFideId "30908604"]
[WhiteElo "3024"]
[BlackElo "2734"]
[Result "1-0"]
[Round "3"]
[TimeControl "180+2"]
[Date "2023.06.27"]
[WhiteClock "0:00:05"]
[BlackClock "0:00:00"]
[Board "12"]

1. d4 {[%clk 0:03:00]}  d5 {[%clk 0:02:58]} 2. c4 {[%clk 0:02:58]}  e6 {[%clk 0:02:59]} 3. Nc3 {[%clk 0:02:58]}  Nf6 {[%clk 0:02:57]} 4. Nf3 {[%clk 0:02:57]}  a6 {[%clk 0:02:57]} 5. cxd5 {[%clk 0:02:57]}  exd5 {[%clk 0:02:58]} 6. Bg5 {[%clk 0:02:57]}  Be7 {[%clk 0:02:54]} 7. e3 {[%clk 0:02:57]}  O-O {[%clk 0:02:54]} 8. Bd3 {[%clk 0:02:58]}  Be6 {[%clk 0:02:52]} 9. O-O {[%clk 0:02:57]}  c6 {[%clk 0:02:49]} 10. Qc2 {[%clk 0:02:56]}  h6 {[%clk 0:02:48]} 11. Bf4 {[%clk 0:02:56]}  Nbd7 {[%clk 0:02:47]} 12. h3 {[%clk 0:02:54]}  Ne8 {[%clk 0:02:42]} 13. Bh7+ {[%clk 0:02:38]}  Kh8 {[%clk 0:02:42]} 14. Bf5 {[%clk 0:02:38]}  Bxf5 {[%clk 0:02:40]} 15. Qxf5 {[%clk 0:02:39]}  Bd6 {[%clk 0:02:34]} 16. Rfe1 {[%clk 0:02:29]}  Bxf4 {[%clk 0:02:31]} 17. Qxf4 {[%clk 0:02:28]}  Qf6 {[%clk 0:02:16]} 18. Ne5 {[%clk 0:02:15]}  Nxe5 {[%clk 0:02:05]} 19. dxe5 {[%clk 0:02:14]}  Qe7 {[%clk 0:01:57]} 20. Qg3 {[%clk 0:02:08]}  Nc7 {[%clk 0:01:55]} 21. f4 {[%clk 0:02:08]}  f6 {[%clk 0:01:50]} 22. exf6 {[%clk 0:02:03]}  Qxf6 {[%clk 0:01:51]} 23. Rad1 {[%clk 0:01:56]}  Rae8 {[%clk 0:01:51]} 24. Re2 {[%clk 0:01:23]}  Nb5 {[%clk 0:01:45]} 25. Nxb5 {[%clk 0:01:23]}  axb5 {[%clk 0:01:46]} 26. Rd4 {[%clk 0:01:18]}  Qxd4 {[%clk 0:01:23]} 27. exd4 {[%clk 0:01:16]}  Rxe2 {[%clk 0:01:23]} 28. b4 {[%clk 0:00:41]}  Re4 {[%clk 0:01:23]} 29. Qg4 {[%clk 0:00:39]}  Rexf4 {[%clk 0:01:13]} 30. Qd7 {[%clk 0:00:39]}  R8f7 {[%clk 0:01:10]} 31. Qe8+ {[%clk 0:00:35]}  Kh7 {[%clk 0:01:09]} 32. a3 {[%clk 0:00:36]}  R7f6 {[%clk 0:01:04]} 33. Qe5 {[%clk 0:00:33]}  Re4 {[%clk 0:01:02]} 34. Qc7 {[%clk 0:00:33]}  Rxd4 {[%clk 0:01:01]} 35. Qxb7 {[%clk 0:00:33]}  Rd1+ {[%clk 0:00:57]} 36. Kh2 {[%clk 0:00:33]}  Rd2 {[%clk 0:00:55]} 37. h4 {[%clk 0:00:30]}  Rg6 {[%clk 0:00:49]} 38. h5 {[%clk 0:00:23]}  Rgxg2+ {[%clk 0:00:46]} 39. Kh3 {[%clk 0:00:23]}  Rc2 {[%clk 0:00:39]} 40. a4 {[%clk 0:00:16]}  bxa4 {[%clk 0:00:35]} 41. b5 {[%clk 0:00:17]}  cxb5 {[%clk 0:00:27]} 42. Qxd5 {[%clk 0:00:18]}  Rge2 {[%clk 0:00:09]} 43. Qd3+ {[%clk 0:00:14]}  Kh8 {[%clk 0:00:10]} 44. Qd8+ {[%clk 0:00:14]}  Kh7 {[%clk 0:00:11]} 45. Qd3+ {[%clk 0:00:15]}  Kg8 {[%clk 0:00:11]} 46. Qd8+ {[%clk 0:00:12]}  Kf7 {[%clk 0:00:11]} 47. Qd7+ {[%clk 0:00:11]}  Kf8 {[%clk 0:00:10]} 48. Qd8+ {[%clk 0:00:05]}  Re8 {[%clk 0:00:04]} 49. Qd6+ {[%clk 0:00:05]}  Kg8 {[%clk 0:00:03]} 50. Qd5+ {[%clk 0:00:06]}  Kh8 {[%clk 0:00:03]} 51. Qxb5 {[%clk 0:00:06]}  Rc3+ {[%clk 0:00:00]} 52. Kg2 {[%clk 0:00:05]} 1-0


[Site "https://www.chess.com"]

[Event "Titled Tuesday Blitz June 27 Late 2023"]
[White "Salem, A.R. Saleh"]
[Black "Rathanvel, V S"]
[WhiteFideId "9301348"]
[BlackFideId "25002112"]
[WhiteElo "3011"]
[BlackElo "2734"]
[Result "1/2-1/2"]
[Round "3"]
[TimeControl "180+2"]
[Date "2023.06.27"]
[WhiteClock "0:00:48"]
[BlackClock "0:01:01"]
[Board "13"]

1. d4 {[%clk 0:03:00]}  Nf6 {[%clk 0:02:59]} 2. c4 {[%clk 0:03:01]}  c5 {[%clk 0:02:54]} 3. d5 {[%clk 0:03:01]}  e6 {[%clk 0:02:53]} 4. Nc3 {[%clk 0:03:01]}  exd5 {[%clk 0:02:53]} 5. cxd5 {[%clk 0:03:02]}  d6 {[%clk 0:02:53]} 6. Nf3 {[%clk 0:03:02]}  g6 {[%clk 0:02:53]} 7. Nd2 {[%clk 0:03:03]}  Bg7 {[%clk 0:02:53]} 8. e4 {[%clk 0:03:04]}  O-O {[%clk 0:02:53]} 9. Be2 {[%clk 0:03:04]}  Na6 {[%clk 0:02:52]} 10. O-O {[%clk 0:03:04]}  Re8 {[%clk 0:02:49]} 11. Kh1 {[%clk 0:02:53]}  Rb8 {[%clk 0:02:46]} 12. f3 {[%clk 0:02:42]}  Bd7 {[%clk 0:02:46]} 13. Nb5 {[%clk 0:02:34]}  Bf8 {[%clk 0:02:32]} 14. a4 {[%clk 0:02:29]}  Nc7 {[%clk 0:02:15]} 15. Nc3 {[%clk 0:02:14]}  b6 {[%clk 0:02:10]} 16. Nb5 {[%clk 0:02:08]}  Rb7 {[%clk 0:01:46]} 17. b3 {[%clk 0:02:05]}  Nh5 {[%clk 0:01:35]} 18. Ra2 {[%clk 0:01:24]}  Bxb5 {[%clk 0:01:23]} 19. axb5 {[%clk 0:01:24]}  Qd7 {[%clk 0:01:24]} 20. Nc4 {[%clk 0:01:05]}  Nxb5 {[%clk 0:01:22]} 21. g4 {[%clk 0:00:58]}  Nc3 {[%clk 0:01:08]} 22. Qc2 {[%clk 0:00:57]}  Nxa2 {[%clk 0:01:08]} 23. Qxa2 {[%clk 0:00:57]}  Nf6 {[%clk 0:01:04]} 24. Bg5 {[%clk 0:00:56]}  Be7 {[%clk 0:01:03]} 25. Bh6 {[%clk 0:00:50]}  Bf8 {[%clk 0:01:03]} 26. Bg5 {[%clk 0:00:49]}  Be7 {[%clk 0:01:02]} 27. Bh6 {[%clk 0:00:50]}  Bf8 {[%clk 0:01:01]} 28. Bg5 {[%clk 0:00:48]} 1/2-1/2


[Site "https://www.chess.com"]

[Event "Titled Tuesday Blitz June 27 Late 2023"]
[White "Martinez Alcantara, Jose Eduardo"]
[Black "Laurent-Paoli, Pierre"]
[WhiteFideId "3805662"]
[BlackFideId "26017962"]
[WhiteElo "3005"]
[BlackElo "2723"]
[Result "1-0"]
[Round "3"]
[TimeControl "180+2"]
[Date "2023.06.27"]
[WhiteClock "0:00:16"]
[BlackClock "0:00:00"]
[Board "15"]

1. e4 {[%clk 0:03:00]}  c6 {[%clk 0:02:59]} 2. d4 {[%clk 0:03:00]}  d5 {[%clk 0:03:00]} 3. e5 {[%clk 0:03:01]}  Bf5 {[%clk 0:03:00]} 4. h4 {[%clk 0:03:02]}  Qb6 {[%clk 0:02:58]} 5. Nc3 {[%clk 0:03:02]}  e6 {[%clk 0:02:58]} 6. g4 {[%clk 0:03:01]}  Be4 {[%clk 0:02:51]} 7. f3 {[%clk 0:02:57]}  c5 {[%clk 0:02:51]} 8. fxe4 {[%clk 0:02:51]}  cxd4 {[%clk 0:02:51]} 9. Nb5 {[%clk 0:02:45]}  dxe4 {[%clk 0:02:32]} 10. Qxd4 {[%clk 0:02:01]}  Bc5 {[%clk 0:02:31]} 11. Qa4 {[%clk 0:02:01]}  Nc6 {[%clk 0:02:25]} 12. Nd6+ {[%clk 0:01:58]}  Bxd6 {[%clk 0:02:19]} 13. exd6 {[%clk 0:01:57]}  Nf6 {[%clk 0:02:19]} 14. Be2 {[%clk 0:01:46]}  O-O-O {[%clk 0:01:50]} 15. Qb3 {[%clk 0:01:40]}  Rxd6 {[%clk 0:01:05]} 16. Qxb6 {[%clk 0:01:38]}  axb6 {[%clk 0:01:06]} 17. c3 {[%clk 0:01:39]}  Nd5 {[%clk 0:01:01]} 18. Nh3 {[%clk 0:01:37]}  Ne5 {[%clk 0:00:56]} 19. O-O {[%clk 0:01:37]}  f6 {[%clk 0:00:53]} 20. Nf4 {[%clk 0:01:37]}  Rhd8 {[%clk 0:00:50]} 21. Nxd5 {[%clk 0:01:37]}  Rxd5 {[%clk 0:00:51]} 22. Bf4 {[%clk 0:01:37]}  Nd3 {[%clk 0:00:51]} 23. Be3 {[%clk 0:01:29]}  Nxb2 {[%clk 0:00:46]} 24. Bxb6 {[%clk 0:01:30]}  R8d6 {[%clk 0:00:47]} 25. Be3 {[%clk 0:01:30]}  Nd3 {[%clk 0:00:45]} 26. Rad1 {[%clk 0:01:21]}  e5 {[%clk 0:00:44]} 27. c4 {[%clk 0:01:18]}  Ra5 {[%clk 0:00:43]} 28. Rd2 {[%clk 0:01:18]}  Rc6 {[%clk 0:00:34]} 29. g5 {[%clk 0:01:05]}  Ra3 {[%clk 0:00:29]} 30. Bg4+ {[%clk 0:01:02]}  Kc7 {[%clk 0:00:28]} 31. Bf5 {[%clk 0:00:58]}  Nc5 {[%clk 0:00:18]} 32. gxf6 {[%clk 0:00:45]}  gxf6 {[%clk 0:00:17]} 33. Re2 {[%clk 0:00:42]}  Ne6 {[%clk 0:00:13]} 34. Bxe4 {[%clk 0:00:26]}  Rxc4 {[%clk 0:00:13]} 35. Bd5 {[%clk 0:00:27]}  Rg4+ {[%clk 0:00:14]} 36. Rg2 {[%clk 0:00:27]}  Rxg2+ {[%clk 0:00:13]} 37. Kxg2 {[%clk 0:00:28]}  Rxe3 {[%clk 0:00:12]} 38. Bxe6 {[%clk 0:00:28]}  Kd6 {[%clk 0:00:06]} 39. Rxf6 {[%clk 0:00:28]}  e4 {[%clk 0:00:05]} 40. Bb3+ {[%clk 0:00:25]}  Ke5 {[%clk 0:00:05]} 41. Rf7 {[%clk 0:00:26]}  Re2+ {[%clk 0:00:05]} 42. Kg3 {[%clk 0:00:26]}  h5 {[%clk 0:00:05]} 43. Re7+ {[%clk 0:00:21]}  Kf5 {[%clk 0:00:04]} 44. Rf7+ {[%clk 0:00:22]}  Ke5 {[%clk 0:00:04]} 45. Rxb7 {[%clk 0:00:23]}  Re3+ {[%clk 0:00:03]} 46. Kf2 {[%clk 0:00:23]}  Rh3 {[%clk 0:00:04]} 47. Rb5+ {[%clk 0:00:20]}  Kf4 {[%clk 0:00:04]} 48. Rxh5 {[%clk 0:00:19]}  Rh2+ {[%clk 0:00:04]} 49. Kg1 {[%clk 0:00:19]}  Rb2 {[%clk 0:00:03]} 50. Rh8 {[%clk 0:00:19]}  e3 {[%clk 0:00:02]} 51. Re8 {[%clk 0:00:17]}  Kg3 {[%clk 0:00:02]} 52. Kf1 {[%clk 0:00:16]}  Kf3 {[%clk 0:00:02]} 53. Bd5+ {[%clk 0:00:17]}  Kf4 {[%clk 0:00:02]} 54. h5 {[%clk 0:00:16]}  Rb1+ {[%clk 0:00:02]} 55. Ke2 {[%clk 0:00:16]}  Rb2+ {[%clk 0:00:03]} 56. Ke1 {[%clk 0:00:16]}  Rb1+ {[%clk 0:00:03]} 57. Ke2 {[%clk 0:00:17]}  Rb2+ {[%clk 0:00:04]} 58. Kd3 {[%clk 0:00:17]}  Rd2+ {[%clk 0:00:05]} 59. Kc4 {[%clk 0:00:18]}  e2 {[%clk 0:00:05]} 60. Kc5 {[%clk 0:00:15]}  Kg3 {[%clk 0:00:05]} 61. Bc4 {[%clk 0:00:15]}  e1=Q {[%clk 0:00:04]} 62. Rxe1 {[%clk 0:00:16]}  Rh2 {[%clk 0:00:04]} 63. Re5 {[%clk 0:00:16]}  Kf4 {[%clk 0:00:04]} 64. Rd5 {[%clk 0:00:16]}  Rxh5 {[%clk 0:00:00]} 65. Rxh5 {[%clk 0:00:16]} 1-0


[Site "https://www.chess.com"]

[Event "Titled Tuesday Blitz June 27 Late 2023"]
[White "Darini, Pouria"]
[Black "Bortnyk, Olexandr"]
[WhiteFideId "12502200"]
[BlackFideId "14120828"]
[WhiteElo "2714"]
[BlackElo "2985"]
[Result "0-1"]
[Round "3"]
[TimeControl "180+2"]
[Date "2023.06.27"]
[WhiteClock "0:00:03"]
[BlackClock "0:00:08"]
[Board "18"]

1. e4 {[%clk 0:02:59]}  Nf6 {[%clk 0:02:59]} 2. e5 {[%clk 0:02:58]}  Nd5 {[%clk 0:02:59]} 3. Nc3 {[%clk 0:02:59]}  Nxc3 {[%clk 0:02:57]} 4. dxc3 {[%clk 0:03:00]}  d6 {[%clk 0:02:58]} 5. exd6 {[%clk 0:02:57]}  cxd6 {[%clk 0:02:54]} 6. Bg5 {[%clk 0:02:52]}  Nc6 {[%clk 0:02:51]} 7. Qd2 {[%clk 0:02:53]}  Qa5 {[%clk 0:02:46]} 8. Bc4 {[%clk 0:02:46]}  g6 {[%clk 0:02:37]} 9. Nf3 {[%clk 0:02:31]}  Bg7 {[%clk 0:02:36]} 10. Bh6 {[%clk 0:02:31]}  Bf6 {[%clk 0:02:32]} 11. h3 {[%clk 0:02:27]}  Bf5 {[%clk 0:02:29]} 12. O-O {[%clk 0:02:19]}  Be4 {[%clk 0:01:56]} 13. Ng5 {[%clk 0:02:12]}  Bxg5 {[%clk 0:01:57]} 14. Bxg5 {[%clk 0:02:09]}  d5 {[%clk 0:01:52]} 15. Bb3 {[%clk 0:01:55]}  O-O-O {[%clk 0:01:50]} 16. Rad1 {[%clk 0:01:46]}  f6 {[%clk 0:01:47]} 17. Be3 {[%clk 0:01:40]}  g5 {[%clk 0:01:27]} 18. f3 {[%clk 0:01:38]}  Bf5 {[%clk 0:01:27]} 19. Qf2 {[%clk 0:01:25]}  e5 {[%clk 0:01:22]} 20. Bc5 {[%clk 0:01:14]}  Be6 {[%clk 0:01:19]} 21. Rd2 {[%clk 0:01:00]}  Rd7 {[%clk 0:01:15]} 22. Rfd1 {[%clk 0:01:01]}  Rhd8 {[%clk 0:01:14]} 23. a3 {[%clk 0:00:56]}  h5 {[%clk 0:01:12]} 24. Ba2 {[%clk 0:00:50]}  b6 {[%clk 0:00:59]} 25. Bb4 {[%clk 0:00:42]}  Qa6 {[%clk 0:00:56]} 26. Bb3 {[%clk 0:00:29]}  Kc7 {[%clk 0:00:55]} 27. a4 {[%clk 0:00:29]}  Bf7 {[%clk 0:00:43]} 28. a5 {[%clk 0:00:29]}  bxa5 {[%clk 0:00:42]} 29. Bc5 {[%clk 0:00:28]}  Qb5 {[%clk 0:00:39]} 30. Ra1 {[%clk 0:00:27]}  d4 {[%clk 0:00:38]} 31. Bxf7 {[%clk 0:00:20]}  Qxc5 {[%clk 0:00:33]} 32. Bxh5 {[%clk 0:00:20]}  Qb6 {[%clk 0:00:32]} 33. Bg4 {[%clk 0:00:18]}  Rd6 {[%clk 0:00:16]} 34. cxd4 {[%clk 0:00:19]}  Nxd4 {[%clk 0:00:17]} 35. Kh1 {[%clk 0:00:19]}  Qxb2 {[%clk 0:00:16]} 36. Rad1 {[%clk 0:00:17]}  Qb6 {[%clk 0:00:16]} 37. c3 {[%clk 0:00:15]}  Nb5 {[%clk 0:00:16]} 38. Qe2 {[%clk 0:00:12]}  Rxd2 {[%clk 0:00:13]} 39. Rxd2 {[%clk 0:00:11]}  Rxd2 {[%clk 0:00:14]} 40. Qxd2 {[%clk 0:00:12]}  Qc6 {[%clk 0:00:14]} 41. c4 {[%clk 0:00:09]}  Qxc4 {[%clk 0:00:05]} 42. Qxa5+ {[%clk 0:00:09]}  Kb7 {[%clk 0:00:06]} 43. Qe1 {[%clk 0:00:03]}  Kb6 {[%clk 0:00:03]} 44. Bf5 {[%clk 0:00:03]}  a5 {[%clk 0:00:03]} 45. Be4 {[%clk 0:00:04]}  a4 {[%clk 0:00:04]} 46. Qd1 {[%clk 0:00:03]}  Nd4 {[%clk 0:00:03]} 47. Bd3 {[%clk 0:00:02]}  Qb3 {[%clk 0:00:03]} 48. Qf1 {[%clk 0:00:01]}  a3 {[%clk 0:00:04]} 49. Bc4 {[%clk 0:00:02]}  Qb2 {[%clk 0:00:04]} 50. Qe1 {[%clk 0:00:02]}  Nc6 {[%clk 0:00:02]} 51. Bd5 {[%clk 0:00:02]}  Nd4 {[%clk 0:00:02]} 52. Bc4 {[%clk 0:00:02]}  Kc5 {[%clk 0:00:02]} 53. Bg8 {[%clk 0:00:02]}  Qb4 {[%clk 0:00:03]} 54. Qc1+ {[%clk 0:00:02]}  Kb6 {[%clk 0:00:03]} 55. Qf1 {[%clk 0:00:02]}  Nb5 {[%clk 0:00:02]} 56. Qd1 {[%clk 0:00:03]}  Nc3 {[%clk 0:00:02]} 57. Qd8+ {[%clk 0:00:03]}  Kb5 {[%clk 0:00:02]} 58. Qd7+ {[%clk 0:00:03]}  Ka5 {[%clk 0:00:02]} 59. Qa7+ {[%clk 0:00:04]}  Kb5 {[%clk 0:00:02]} 60. Qd7+ {[%clk 0:00:04]}  Ka6 {[%clk 0:00:02]} 61. Qc8+ {[%clk 0:00:04]}  Ka7 {[%clk 0:00:02]} 62. Qc7+ {[%clk 0:00:04]}  Ka6 {[%clk 0:00:02]} 63. Bc4+ {[%clk 0:00:05]}  Nb5 {[%clk 0:00:01]} 64. Qc6+ {[%clk 0:00:05]}  Ka5 {[%clk 0:00:02]} 65. Qa8+ {[%clk 0:00:06]}  Kb6 {[%clk 0:00:02]} 66. Qb8+ {[%clk 0:00:06]}  Kc5 {[%clk 0:00:02]} 67. Bxb5 {[%clk 0:00:06]}  Qb1+ {[%clk 0:00:01]} 68. Kh2 {[%clk 0:00:06]}  a2 {[%clk 0:00:02]} 69. Qa7+ {[%clk 0:00:06]}  Kxb5 {[%clk 0:00:02]} 70. Qb7+ {[%clk 0:00:07]}  Kc5 {[%clk 0:00:03]} 71. Qc7+ {[%clk 0:00:07]}  Kd4 {[%clk 0:00:03]} 72. Qd6+ {[%clk 0:00:08]}  Ke3 {[%clk 0:00:04]} 73. Qc5+ {[%clk 0:00:07]}  Ke2 {[%clk 0:00:02]} 74. Qc4+ {[%clk 0:00:08]}  Kd2 {[%clk 0:00:02]} 75. Qd5+ {[%clk 0:00:07]}  Ke1 {[%clk 0:00:03]} 76. Qa5+ {[%clk 0:00:06]}  Ke2 {[%clk 0:00:03]} 77. Qa6+ {[%clk 0:00:06]}  Ke3 {[%clk 0:00:03]} 78. Qa7+ {[%clk 0:00:06]}  Kf4 {[%clk 0:00:03]} 79. Qa4+ {[%clk 0:00:06]}  e4 {[%clk 0:00:03]} 80. g3+ {[%clk 0:00:05]}  Kxf3 {[%clk 0:00:04]} 81. Qa3+ {[%clk 0:00:05]}  e3 {[%clk 0:00:03]} 82. Qa8+ {[%clk 0:00:06]}  Ke2 {[%clk 0:00:03]} 83. Qg2+ {[%clk 0:00:06]}  Kd1 {[%clk 0:00:02]} 84. Qd5+ {[%clk 0:00:05]}  Ke1 {[%clk 0:00:03]} 85. Qh1+ {[%clk 0:00:04]}  Kd2 {[%clk 0:00:03]} 86. Qd5+ {[%clk 0:00:04]}  Kc1 {[%clk 0:00:02]} 87. Qh1+ {[%clk 0:00:03]}  Kb2 {[%clk 0:00:03]} 88. Qb7+ {[%clk 0:00:04]}  Ka1 {[%clk 0:00:03]} 89. Qf3 {[%clk 0:00:02]}  Qb2+ {[%clk 0:00:03]} 90. Kg1 {[%clk 0:00:03]}  Qc1+ {[%clk 0:00:03]} 91. Kh2 {[%clk 0:00:03]}  Qd2+ {[%clk 0:00:04]} 92. Kh1 {[%clk 0:00:04]}  Qe1+ {[%clk 0:00:05]} 93. Kh2 {[%clk 0:00:04]}  Qf2+ {[%clk 0:00:05]} 94. Qxf2 {[%clk 0:00:03]}  exf2 {[%clk 0:00:06]} 95. Kg2 {[%clk 0:00:04]}  f1=Q+ {[%clk 0:00:06]} 96. Kxf1 {[%clk 0:00:04]}  Kb2 {[%clk 0:00:07]} 97. h4 {[%clk 0:00:03]}  a1=Q+ {[%clk 0:00:08]} 0-1


[Site "https://www.chess.com"]

[Event "Titled Tuesday Blitz June 27 Late 2023"]
[White "Yoo, Christopher Woojin"]
[Black "Bolourchifard, Farzad"]
[WhiteFideId "30909694"]
[BlackFideId "12510084"]
[WhiteElo "2983"]
[BlackElo "2702"]
[Result "1-0"]
[Round "3"]
[TimeControl "180+2"]
[Date "2023.06.27"]
[WhiteClock "0:00:12"]
[BlackClock "0:00:05"]
[Board "19"]

1. d4 {[%clk 0:03:00]}  Nf6 {[%clk 0:02:57]} 2. Nf3 {[%clk 0:03:01]}  e6 {[%clk 0:02:56]} 3. Bf4 {[%clk 0:02:58]}  c5 {[%clk 0:02:56]} 4. e3 {[%clk 0:02:58]}  b6 {[%clk 0:02:56]} 5. Nbd2 {[%clk 0:02:58]}  Be7 {[%clk 0:02:57]} 6. Bd3 {[%clk 0:02:57]}  Ba6 {[%clk 0:02:56]} 7. Bxa6 {[%clk 0:02:42]}  Nxa6 {[%clk 0:02:55]} 8. O-O {[%clk 0:02:28]}  cxd4 {[%clk 0:02:54]} 9. exd4 {[%clk 0:02:26]}  O-O {[%clk 0:02:55]} 10. Qe2 {[%clk 0:02:21]}  Nb4 {[%clk 0:02:38]} 11. c4 {[%clk 0:02:12]}  d5 {[%clk 0:02:30]} 12. Rfc1 {[%clk 0:01:52]}  dxc4 {[%clk 0:02:25]} 13. Nxc4 {[%clk 0:01:52]}  Nbd5 {[%clk 0:02:22]} 14. Bg3 {[%clk 0:01:50]}  Rc8 {[%clk 0:01:56]} 15. Nce5 {[%clk 0:01:49]}  Bd6 {[%clk 0:01:50]} 16. Nc6 {[%clk 0:01:45]}  Qd7 {[%clk 0:01:39]} 17. Bxd6 {[%clk 0:01:44]}  Qxd6 {[%clk 0:01:40]} 18. Nxa7 {[%clk 0:01:44]}  Rxc1+ {[%clk 0:01:38]} 19. Rxc1 {[%clk 0:01:45]}  h6 {[%clk 0:01:33]} 20. Nb5 {[%clk 0:01:42]}  Qb4 {[%clk 0:01:31]} 21. g3 {[%clk 0:01:16]}  Ra8 {[%clk 0:01:19]} 22. a3 {[%clk 0:01:14]}  Qb3 {[%clk 0:01:16]} 23. Ne5 {[%clk 0:01:09]}  Nh7 {[%clk 0:00:58]} 24. Nd6 {[%clk 0:01:00]}  Rf8 {[%clk 0:00:19]} 25. h4 {[%clk 0:00:20]}  Nhf6 {[%clk 0:00:19]} 26. Nexf7 {[%clk 0:00:18]}  Nf4 {[%clk 0:00:11]} 27. gxf4 {[%clk 0:00:15]}  Rxf7 {[%clk 0:00:11]} 28. Nxf7 {[%clk 0:00:16]}  Kxf7 {[%clk 0:00:12]} 29. Rc7+ {[%clk 0:00:16]}  Kg6 {[%clk 0:00:10]} 30. h5+ {[%clk 0:00:15]}  Kh7 {[%clk 0:00:09]} 31. Rc3 {[%clk 0:00:11]}  Qd5 {[%clk 0:00:07]} 32. Qc2+ {[%clk 0:00:11]}  Kh8 {[%clk 0:00:06]} 33. Rc8+ {[%clk 0:00:11]}  Ng8 {[%clk 0:00:07]} 34. Qg6 {[%clk 0:00:11]}  Qxd4 {[%clk 0:00:04]} 35. Qf7 {[%clk 0:00:11]}  Qd1+ {[%clk 0:00:04]} 36. Kh2 {[%clk 0:00:12]}  Qg4 {[%clk 0:00:05]} 37. Qxg8# {[%clk 0:00:12]} 1-0


[Site "https://www.chess.com"]

[Event "Titled Tuesday Blitz June 27 Late 2023"]
[White "Fisher_TheGalactic"]
[Black "Korobov, Anton"]
[BlackFideId "14105730"]
[WhiteElo "2696"]
[BlackElo "2975"]
[Result "0-1"]
[Round "3"]
[TimeControl "180+2"]
[Date "2023.06.27"]
[WhiteClock "0:00:22"]
[BlackClock "0:01:45"]
[Board "20"]

1. e4 {[%clk 0:03:00]}  c5 {[%clk 0:02:59]} 2. Nf3 {[%clk 0:03:00]}  d6 {[%clk 0:03:00]} 3. Bc4 {[%clk 0:02:59]}  Nf6 {[%clk 0:02:59]} 4. d3 {[%clk 0:02:59]}  Nc6 {[%clk 0:02:59]} 5. O-O {[%clk 0:02:59]}  Bg4 {[%clk 0:02:59]} 6. h3 {[%clk 0:02:58]}  Bh5 {[%clk 0:02:59]} 7. Nbd2 {[%clk 0:02:53]}  e6 {[%clk 0:02:59]} 8. c3 {[%clk 0:02:53]}  Be7 {[%clk 0:02:58]} 9. Bb5 {[%clk 0:02:51]}  Rc8 {[%clk 0:02:57]} 10. d4 {[%clk 0:02:48]}  cxd4 {[%clk 0:02:55]} 11. cxd4 {[%clk 0:02:49]}  O-O {[%clk 0:02:54]} 12. Bxc6 {[%clk 0:02:49]}  Rxc6 {[%clk 0:02:54]} 13. b3 {[%clk 0:02:48]}  d5 {[%clk 0:02:51]} 14. exd5 {[%clk 0:02:35]}  Nxd5 {[%clk 0:02:49]} 15. Bb2 {[%clk 0:02:34]}  Nf4 {[%clk 0:02:46]} 16. Nc4 {[%clk 0:02:32]}  Qd5 {[%clk 0:02:41]} 17. Ne3 {[%clk 0:02:23]}  Qe4 {[%clk 0:02:20]} 18. d5 {[%clk 0:01:33]}  exd5 {[%clk 0:02:15]} 19. Ng4 {[%clk 0:01:12]}  Nxh3+ {[%clk 0:02:02]} 20. gxh3 {[%clk 0:00:55]}  Bxg4 {[%clk 0:02:02]} 21. Qd4 {[%clk 0:00:53]}  Bf6 {[%clk 0:01:47]} 22. Qxe4 {[%clk 0:00:50]}  dxe4 {[%clk 0:01:48]} 23. Bxf6 {[%clk 0:00:39]}  Bxf3 {[%clk 0:01:45]} 24. Be5 {[%clk 0:00:34]}  Rg6+ {[%clk 0:01:45]} 25. Bg3 {[%clk 0:00:22]}  f5 {[%clk 0:01:45]} 0-1


[Site "https://www.chess.com"]

[Event "Titled Tuesday Blitz June 27 Late 2023"]
[White "Sanal, Vahap"]
[Black "Volkov, Maksim"]
[WhiteFideId "6300545"]
[BlackFideId "54123070"]
[WhiteElo "2973"]
[BlackElo "2693"]
[Result "1-0"]
[Round "3"]
[TimeControl "180+2"]
[Date "2023.06.27"]
[WhiteClock "0:02:07"]
[BlackClock "0:00:32"]
[Board "21"]

1. e4 {[%clk 0:03:00]}  c5 {[%clk 0:02:59]} 2. Nc3 {[%clk 0:03:00]}  d6 {[%clk 0:02:59]} 3. d4 {[%clk 0:02:59]}  cxd4 {[%clk 0:02:59]} 4. Qxd4 {[%clk 0:03:00]}  Nc6 {[%clk 0:02:59]} 5. Qd2 {[%clk 0:03:01]}  g6 {[%clk 0:02:59]} 6. b3 {[%clk 0:03:01]}  Bh6 {[%clk 0:02:59]} 7. f4 {[%clk 0:03:02]}  Nf6 {[%clk 0:02:59]} 8. Bb2 {[%clk 0:03:02]}  e5 {[%clk 0:03:00]} 9. g3 {[%clk 0:03:01]}  O-O {[%clk 0:03:00]} 10. O-O-O {[%clk 0:03:00]}  Bg4 {[%clk 0:02:57]} 11. Be2 {[%clk 0:02:57]}  Bxe2 {[%clk 0:02:36]} 12. Ngxe2 {[%clk 0:02:57]}  Re8 {[%clk 0:02:31]} 13. Kb1 {[%clk 0:02:48]}  exf4 {[%clk 0:02:18]} 14. gxf4 {[%clk 0:02:45]}  Nxe4 {[%clk 0:02:02]} 15. Nxe4 {[%clk 0:02:45]}  Rxe4 {[%clk 0:02:03]} 16. Qc3 {[%clk 0:02:45]}  f6 {[%clk 0:02:02]} 17. Ng3 {[%clk 0:02:35]}  Rxf4 {[%clk 0:01:56]} 18. Bc1 {[%clk 0:02:35]}  Rh4 {[%clk 0:01:56]} 19. Bxh6 {[%clk 0:02:35]}  Rxh6 {[%clk 0:01:57]} 20. Ne4 {[%clk 0:02:35]}  g5 {[%clk 0:01:00]} 21. Rxd6 {[%clk 0:02:34]}  Qe7 {[%clk 0:01:01]} 22. Nxf6+ {[%clk 0:02:34]}  Kf7 {[%clk 0:01:00]} 23. Qc4+ {[%clk 0:02:09]}  Kf8 {[%clk 0:00:32]} 24. Qg8# {[%clk 0:02:07]} 1-0


[Site "https://www.chess.com"]